fUSD/lending_fUSD_20240613
["ID","MTS","AMOUNT","RATE_DAILY","PERIOD"]
[329315185,1718238647158,-154.43235661,0.00025627,2]
[329315188,1718238647170,-156.96359229,0.00025687,2]
[329315190,1718238647180,-164.58,0.00025708,2]
[329315192,1718238647190,-300.0,0.00025715,2]
[329315194,1718238647201,-1520.55,0.00025805,2]
[329315196,1718238647214,-179.13473058,0.00025809,2]
[329315198,1718238647225,-5983.08124322,0.00025809,2]
[329315200,1718238647235,-166.3496266,0.00025818,2]
[329315202,1718238647247,-150.4868812,0.00025854,2]
[329315204,1718238647257,-150.4868812,0.00025855,2]
[329315206,1718238647267,-164.58,0.0002587,2]
[329315208,1718238647278,-191.11,0.0002589,2]
[329315210,1718238647289,-234.08778142,0.00025984,2]
[329315212,1718238647299,-808.6055385,0.00026,30]
[329315214,1718238647315,-154.15727268,0.00026004,2]
[329315216,1718238647329,-41026.46943978,0.00026011,2]
[329315218,1718238647341,-164.58,0.00026031,2]
[329315220,1718238647352,-234.08778142,0.00026115,2]
[329315222,1718238647368,-156.96359229,0.00026126,2]
[329315224,1718238647385,-155.19385195,0.00026134,2]
[329315226,1718238647395,-1564.04996232,0.0002615,2]
[329315228,1718238647411,-234.08778142,0.00026153,2]
[329315230,1718238647428,-166.3496266,0.00026207,2]
[329315233,1718238647442,-150.0,0.0002624,2]
[329315235,1718238647461,-5983.08124322,0.00026264,2]
[329315237,1718238647474,-14235.52,0.00026301,2]
[329315239,1718238647493,-1000.0,0.00026301,3]
[329315241,1718238647530,-390.33825859,0.00026329,2]
[329315242,1718238647552,-158.90716712,0.00026369,2]
[329315244,1718238647580,-234.08778142,0.00026542,2]
[329315245,1718238647592,-174.69456251,0.00026549,2]
[329315248,1718238647613,-150.42,0.00026557,2]
[329315249,1718238647626,-41026.46943978,0.00026567,2]
[329315250,1718238647639,-234.08778142,0.00026581,2]
[329315251,1718238647656,-156.96359229,0.00026665,2]
[329315252,1718238647670,-5983.08124322,0.00026718,2]
[329315253,1718238647700,-223.18715635,0.00026763,2]
[329315254,1718238647727,-156.96359229,0.00026774,2]
[329315255,1718238647742,-250.0,0.00026788,2]
[329315256,1718238647764,-1520.55,0.00026927,2]
[329315257,1718238647777,-2000.0,0.00027,2]
[329315258,1718238647789,-3612.863124,0.0002701,2]
[329315259,1718238647802,-390.33825859,0.00027043,2]
[329315260,1718238647830,-166.66666666,0.00027093,2]
[329315261,1718238647852,-41026.46943978,0.00027122,2]
[329315262,1718238647869,-5983.08124322,0.00027173,2]
[329315263,1718238647895,-350.0,0.00027336,2]
[329315264,1718238647930,-588.29,0.0002737,2]
[329315265,1718238647947,-234.08778142,0.00027392,2]
[329315266,1718238647958,-438.37773212,0.00027397,2]
[329315267,1718238647971,-154.92,0.00027397,2]
[329315268,1718238647986,-175.19,0.00027397,2]
[329315269,1718238647998,-300.0,0.00027397,10]
[329315270,1718238648014,-1564.04996232,0.000274,2]
[329315271,1718238648029,-158.90716712,0.0002742,2]
[329315272,1718238648039,-156.96359229,0.00027423,2]
[329315273,1718238648065,-150.4868812,0.00027474,2]
[329315274,1718238648093,-154.99387401,0.00027492,2]
[329315275,1718238648106,-244.979241,0.00027515,2]
[329315276,1718238648121,-279.839333,0.00027515,2]
[329315277,1718238648132,-807.323121,0.00027515,2]
[329315278,1718238648147,-328.53,0.00027538,2]
[329315279,1718238648161,-156.96359229,0.00027541,2]
[329315280,1718238648177,-2925.96,0.00027581,2]
[329315281,1718238648189,-5983.08124322,0.00027627,2]
[329315282,1718238648201,-382.4172001,0.00027677,10]
[329315283,1718238648216,-41026.46943978,0.00027678,2]
[329315284,1718238648230,-166.66666665,0.00027706,2]
[329315285,1718238648246,-169.95,0.00027717,2]
[329315286,1718238648257,-150.4868812,0.00027734,2]
[329315287,1718238648279,-169.95,0.0002774,2]
[329315288,1718238648295,-390.33825859,0.00027757,2]
[329315289,1718238648311,-169.95,0.00027763,2]
[329315290,1718238648323,-2959.65817659,0.00027786,2]
[329315291,1718238648336,-169.95,0.00027786,2]
[329315292,1718238648351,-800.0,0.00027795,2]
[329315293,1718238648364,-150.78181346,0.00027805,2]
[329315294,1718238648385,-169.95,0.0002781,2]
[329315295,1718238648405,-234.08778142,0.00027816,2]
[329315296,1718238648425,-166.66666666,0.00027827,2]
[329315297,1718238648442,-169.95,0.00027833,2]
[329315298,1718238648458,-169.95,0.00027856,2]
[329315299,1718238648482,-244.979241,0.00027858,2]
[329315300,1718238648528,-807.323121,0.00027858,2]
[329315301,1718238648541,-395.54297139,0.00027884,2]
[329315302,1718238648552,-234.08778142,0.00027902,2]
[329315303,1718238648568,-234.08778142,0.00027976,2]
[329315304,1718238648587,-154.95775928,0.00027999,2]
[329315305,1718238648599,-224.98486477,0.00028,2]
[329315306,1718238648610,-166.66666666,0.00028022,2]
[329315307,1718238648621,-5983.08124322,0.00028082,2]
[329315308,1718238648635,-154.92,0.00028158,2]
[329315309,1718238648649,-156.96359229,0.00028168,2]
[329315310,1718238648662,-244.979241,0.00028202,2]
[329315311,1718238648678,-807.323121,0.00028202,2]
[329315312,1718238648691,-150.42,0.00028223,2]
[329315313,1718238648706,-41026.46943978,0.00028233,2]
[329315314,1718238648721,-390.33825859,0.00028471,2]
[329315315,1718238648742,-733.18794817,0.00028498,2]
[329315316,1718238648764,-167.0,0.0002851,2]
[329315317,1718238648776,-5983.08124322,0.00028536,2]
[329315319,1718238648792,-244.979241,0.00028546,2]
[329315321,1718238648810,-807.323121,0.00028546,2]
[329315323,1718238648827,-150.4868812,0.00028593,2]
[329315325,1718238648848,-150.4868812,0.00028602,2]
[329315327,1718238648868,-1564.04996232,0.0002865,2]
[329315329,1718238648882,-234.08778142,0.00028667,2]
[329315331,1718238648895,-234.08778142,0.00028702,2]
[329315333,1718238648906,-41026.46943978,0.00028789,2]
[329315335,1718238648918,-152.0,0.00028803,3]
[329315337,1718238648929,-150.0,0.00028842,2]
[329315338,1718238648942,-158.90716712,0.00028851,2]
[329315340,1718238648954,-154.21526058,0.00028872,2]
[329315342,1718238648965,-156.96359229,0.00028888,2]
[329315344,1718238648982,-244.979241,0.0002889,2]
[329315348,1718238648994,-807.323121,0.0002889,2]
[329315351,1718238649014,-158.90716712,0.00028904,2]
[329315353,1718238649030,-150.78181346,0.00028911,2]
[329315356,1718238649054,-154.92,0.00028919,2]
[329315359,1718238649080,-150.0,0.00028928,2]
[329315362,1718238649095,-5983.08124322,0.00028991,2]
[329315365,1718238649111,-5800.0,0.00028998,2]
[329315368,1718238649130,-2989.95,0.00029,2]
[329315371,1718238649157,-1489.8087426,0.00029,2]
[329315374,1718238649170,-4173.19345114,0.00029,2]
[329315376,1718238649197,-714.70400096,0.00029,2]
[329315379,1718238649217,-166.3496266,0.00029004,2]
[329315381,1718238649231,-158.90716712,0.00029039,2]
[329315383,1718238649245,-154.21526058,0.00029073,2]
[329315385,1718238649257,-390.33825859,0.00029186,2]
[329315387,1718238649270,-160.8866894,0.00029191,2]
[329315388,1718238649284,-484.0,0.00029233,5]
[329315389,1718238649298,-234.08778142,0.00029254,2]
[329315391,1718238649312,-1500.0,0.000293,2]
[329315393,1718238649325,-500.0,0.00029327,3]
[329315395,1718238649343,-41026.46943978,0.00029344,15]
[329315397,1718238649368,-156.96359229,0.00029358,2]
[329315399,1718238649401,-150.42,0.00029375,2]
[329315401,1718238649425,-150.0,0.00029382,2]
[329315403,1718238649440,-3171.0,0.00029386,2]
[329315405,1718238649452,-1303.0,0.00029386,2]
[329315407,1718238649470,-546.0,0.00029386,2]
[329315409,1718238649487,-1853.0,0.00029386,2]
[329315412,1718238649518,-359.279,0.00029386,2]
[329315414,1718238649543,-975.0,0.00029386,2]
[329315415,1718238649555,-5157.0,0.00029386,2]
[329315417,1718238649566,-290.0,0.00029386,2]
[329315419,1718238649577,-5787.0,0.00029386,2]
[329315421,1718238649589,-1467.0,0.00029386,2]
[329315423,1718238649602,-38079.0,0.00029386,2]
[329315425,1718238649616,-437.0,0.00029386,2]
[329315427,1718238649628,-616.0,0.00029386,2]
[329315428,1718238649642,-1650.0,0.00029386,2]
[329315430,1718238649660,-1261.0,0.00029386,2]
[329315432,1718238649690,-1830.0,0.00029386,2]
[329315434,1718238649702,-1116.521,0.00029386,2]
[329315435,1718238649715,-930.15071455,0.00029398,2]
[329315436,1718238649726,-155.57152469,0.00029398,2]
[329315438,1718238649746,-399.5407,0.000294,2]
[329315439,1718238649769,-5983.08124322,0.00029445,2]
[329315440,1718238649781,-226.78247863,0.000295,3]
[329315442,1718238649804,-154.99387401,0.0002954,2]
[329315444,1718238649825,-151.0,0.00029543,2]
[329315446,1718238649839,-1927.4612,0.00029567,2]
[329315449,1718238649862,-500.0,0.00029599,2]
[329315451,1718238649878,-3848.662,0.000296,2]
[329315453,1718238649890,-154.15727268,0.00029646,2]
[329315455,1718238649904,-150.0,0.00029657,2]
[329315457,1718238649917,-154.92,0.0002968,2]
[329315458,1718238649932,-2240.87713428,0.00029699,2]
[329315460,1718238649946,-150.0,0.00029699,2]
[329315461,1718238649960,-150.0,0.00029699,2]
[329315462,1718238649976,-150.98671,0.00029699,2]
[329315463,1718238649989,-500.0,0.000297,2]
[329315464,1718238650001,-1000.0,0.000297,2]
[329315465,1718238650030,-33627.97803897,0.000297,2]
[329315466,1718238650042,-1261.9829,0.000297,2]
[329315467,1718238650053,-234.08778142,0.00029734,2]
[329315468,1718238650067,-150.0,0.00029744,2]
[329315469,1718238650086,-500.0,0.0002975,2]
[329315470,1718238650099,-1000.0,0.0002976,30]
[329315471,1718238650124,-500.0,0.0002976,2]
[329315472,1718238650135,-150.4868812,0.00029762,2]
[329315473,1718238650148,-150.0,0.00029775,2]
[329315474,1718238650161,-150.0,0.00029784,2]
[329315475,1718238650173,-500.0,0.00029799,30]
[329315476,1718238650185,-500.0,0.00029799,30]
[329315477,1718238650327,-500.0,0.00029799,30]
[329315478,1718238650357,-14526.9864,0.000298,2]
[329315479,1718238650371,-500.0,0.000298,2]
[329315480,1718238650382,-500.0,0.000298,2]
[329315481,1718238650394,-500.0,0.000298,2]
[329315482,1718238650405,-328.53,0.00029802,2]
[329315483,1718238650416,-150.0,0.00029823,2]
[329315484,1718238650432,-150.0,0.00029834,2]
[329315485,1718238650442,-150.0,0.00029846,2]
[329315486,1718238650455,-500.0,0.0002985,2]
[329315487,1718238650467,-500.0,0.0002985,2]
[329315488,1718238650477,-1000.0,0.0002985,2]
[329315489,1718238650487,-1000.0,0.0002985,2]
[329315490,1718238650499,-1000.0,0.0002985,2]
[329315491,1718238650528,-1000.0,0.0002985,2]
[329315492,1718238650542,-1000.0,0.0002985,2]
[329315493,1718238650572,-1000.0,0.0002985,2]
[329315494,1718238650586,-1000.0,0.0002985,2]
[329315495,1718238650597,-1000.0,0.0002985,2]
[329315496,1718238650609,-1000.0,0.0002985,2]
[329315497,1718238650619,-1000.0,0.0002985,2]
[329315498,1718238650633,-1000.0,0.0002985,2]
[329315499,1718238650644,-1000.0,0.0002985,2]
[329315500,1718238650654,-1000.0,0.0002985,2]
[329315501,1718238650665,-1000.0,0.0002985,2]
[329315502,1718238650675,-1000.0,0.0002985,2]
[329315503,1718238650688,-1000.0,0.0002985,2]
[329315504,1718238650702,-1000.0,0.0002985,2]
[329315505,1718238650718,-1000.0,0.0002985,2]
[329315506,1718238650730,-1000.0,0.0002985,2]
[329315507,1718238650747,-1000.0,0.0002985,2]
[329315508,1718238650759,-1000.0,0.0002985,2]
[329315509,1718238650772,-1000.0,0.0002985,2]
[329315510,1718238650787,-1000.0,0.0002985,2]
[329315511,1718238650801,-1000.0,0.0002985,2]
[329315512,1718238650817,-1000.0,0.0002985,2]
[329315513,1718238650832,-1000.0,0.0002985,2]
[329315514,1718238650843,-1000.0,0.0002985,2]
[329315515,1718238650854,-1000.0,0.0002985,2]
[329315516,1718238650865,-207.3151,0.0002985,2]
[329315517,1718238650877,-500.0,0.0002985,2]
[329315518,1718238650888,-500.0,0.0002985,2]
[329315519,1718238650900,-500.0,0.0002985,2]
[329315520,1718238650915,-500.0,0.0002985,2]
[329315521,1718238650933,-526.2765,0.0002985,2]
[329315522,1718238650945,-500.0,0.00029855,30]
[329315523,1718238650955,-500.0,0.00029866,30]
[329315524,1718238650976,-150.0,0.00029867,2]
[329315525,1718238650989,-150.42,0.0002989,2]
[329315526,1718238651007,-1436.76547512,0.0002989,2]
[329315527,1718238651027,-191.16189019,0.0002989,2]
[329315528,1718238651046,-317.83071982,0.0002989,2]
[329315529,1718238651066,-150.0,0.00029893,2]
[329315530,1718238651080,-1500.0,0.00029893,2]
[329315531,1718238651098,-11984.35312611,0.00029895,2]
[329315532,1718238651110,-1436.76547511,0.00029895,2]
[329315533,1718238651123,-382.94746263,0.00029898,2]
[329315534,1718238651135,-382.94746261,0.00029899,2]
[329315535,1718238651150,-382.94746261,0.00029899,2]
[329315536,1718238651161,-500.0,0.00029899,30]
[329315537,1718238651173,-1087.79771715,0.00029899,2]
[329315538,1718238651188,-382.94746261,0.000299,2]
[329315539,1718238651198,-25337.0405,0.000299,2]
[329315540,1718238651211,-500.0,0.000299,2]
[329315541,1718238651223,-500.0,0.000299,2]
[329315542,1718238651247,-500.0,0.000299,2]
[329315543,1718238651261,-500.0,0.000299,2]
[329315544,1718238651274,-382.94746261,0.000299,2]
[329315545,1718238651295,-1564.04996232,0.000299,2]
[329315546,1718238651311,-41026.46943978,0.000299,15]
[329315547,1718238651322,-5983.08124322,0.000299,2]
[329315548,1718238651340,-390.33825859,0.000299,2]
[329315549,1718238651354,-11984.35312611,0.000299,2]
[329315550,1718238651365,-150.0,0.000299,6]
[329315551,1718238651377,-191.16189019,0.000299,2]
[329315552,1718238651387,-1436.76547511,0.000299,2]
[329315553,1718238651398,-903.17331552,0.0002991,2]
[329315554,1718238651407,-150.0,0.0002993,2]
[329315555,1718238651418,-150.0,0.00029976,2]
[329315556,1718238651428,-150.42,0.0002998,2]
[329315557,1718238651437,-150.42,0.0002998,2]
[329315558,1718238651448,-150.42,0.0002998,2]
[329315559,1718238651461,-150.42,0.0002998,2]
[329315560,1718238651477,-150.42,0.0002998,2]
[329315561,1718238651494,-150.42,0.0002998,2]
[329315562,1718238651521,-150.42,0.0002998,2]
[329315563,1718238651536,-150.42,0.0002998,2]
[329315564,1718238651547,-150.42,0.0002998,2]
[329315565,1718238651560,-317.83071982,0.0002998,2]
[329315566,1718238651570,-150.0,0.00029981,2]
[329315567,1718238651582,-150.42,0.00029988,2]
[329315568,1718238651595,-150.42,0.00029988,2]
[329315569,1718238651606,-1364796.578595,0.0002999,7]
[329315570,1718238651617,-248.89488543,0.00029997,30]
[329315571,1718238651629,-500.0,0.00029997,30]
[329315572,1718238651641,-2572.15464946,0.00029998,2]
[329315573,1718238651653,-4007.69041779,0.00029998,2]
[329315574,1718238651664,-158.25744131,0.00029998,2]
[329315575,1718238651677,-638.68202268,0.00029998,2]
[329315576,1718238651697,-155.0,0.00029998,2]
[329315577,1718238651709,-1821.59624414,0.00029998,2]
[329315578,1718238651723,-449.12248201,0.00029998,2]
[329315579,1718238651736,-209.41336991,0.00029998,2]
[329315580,1718238651748,-234.24959519,0.00029998,2]
[329315581,1718238651760,-155.0,0.00029998,2]
[329315582,1718238651773,-3064.39202491,0.00029998,2]
[329315583,1718238651788,-265.91210066,0.00029998,2]
[329315584,1718238651804,-263.76706903,0.00029998,2]
[329315585,1718238651822,-2386.96216295,0.00029998,2]
[329315586,1718238651842,-744.77764368,0.00029998,2]
[329315587,1718238651863,-155.0,0.00029998,2]
[329315588,1718238651874,-155.0,0.00029998,2]
[329315589,1718238651895,-10468.90491151,0.00029998,2]
[329315590,1718238651911,-1805.05840051,0.00029998,2]
[329315591,1718238651926,-649.34168046,0.00029998,2]
[329315592,1718238651942,-155.0,0.00029998,2]
[329315593,1718238651956,-226.19764854,0.00029998,2]
[329315594,1718238651970,-155.0,0.00029998,2]
[329315595,1718238651983,-411.5495904,0.00029998,2]
[329315596,1718238651998,-302.0,0.00029998,2]
[329315597,1718238652016,-1779.11097085,0.00029998,2]
[329315598,1718238652031,-255.80050698,0.00029998,2]
[329315599,1718238652043,-2656.2730961,0.00029998,2]
[329315600,1718238652055,-797.07258618,0.00029998,2]
[329315601,1718238652072,-155.0,0.00029998,2]
[329315602,1718238652084,-790.03320351,0.00029998,2]
[329315603,1718238652094,-866.6677805,0.00029998,3]
[329315604,1718238652112,-187.42794197,0.00029998,2]
[329315605,1718238652125,-7600.0,0.00029998,2]
[329315606,1718238652140,-155.0,0.00029998,2]
[329315607,1718238652152,-1010.86316582,0.00029998,2]
[329315608,1718238652170,-6792.60300481,0.00029998,2]
[329315609,1718238652183,-158.98454596,0.00029998,2]
[329315610,1718238652202,-155.0,0.00029998,2]
[329315611,1718238652214,-155.0,0.00029998,2]
[329315612,1718238652228,-325.89141873,0.00029998,2]
[329315613,1718238652242,-155.0,0.00029998,2]
[329315614,1718238652253,-325.78398581,0.00029998,2]
[329315615,1718238652265,-225.04645167,0.00029998,2]
[329315616,1718238652279,-2055.20344569,0.00029998,2]
[329315617,1718238652295,-468.61489945,0.00029998,2]
[329315618,1718238652309,-222194.05027872,0.00029998,2]
[329315619,1718238652330,-5000.0,0.00029998,2]
[329315620,1718238652343,-19700.729651,0.00029998,2]
[329315621,1718238652365,-242.98912964,0.00029998,2]
[329315622,1718238652384,-2366.67503742,0.00029998,2]
[329315623,1718238652399,-156.14040432,0.00029998,2]
[329315624,1718238652411,-236.1339612,0.00029998,2]
[329315625,1718238652425,-571.41002841,0.00029998,2]
[329315626,1718238652436,-155.0,0.00029998,2]
[329315627,1718238652447,-785.08586126,0.00029998,2]
[329315628,1718238652458,-2480.25747293,0.00029998,2]
[329315629,1718238652468,-1529.81816202,0.00029998,2]
[329315630,1718238652478,-973.64026678,0.00029998,2]
[329315631,1718238652490,-377.9482928,0.00029998,2]
[329315632,1718238652511,-234.70114228,0.00029998,2]
[329315633,1718238652535,-229.72573414,0.00029998,2]
[329315634,1718238652545,-407.04296718,0.00029998,2]
[329315635,1718238652556,-168.64898794,0.00029998,2]
[329315636,1718238652569,-306.92224248,0.00029998,2]
[329315637,1718238652580,-163.69880593,0.00029998,2]
[329315638,1718238652593,-742.55272188,0.00029998,2]
[329315639,1718238652604,-157.14302958,0.00029998,2]
[329315640,1718238652615,-155.0,0.00029998,2]
[329315641,1718238652625,-302.25560307,0.00029998,2]
[329315642,1718238652635,-1065.50723341,0.00029998,2]
[329315643,1718238652645,-156.01992126,0.00029998,2]
[329315644,1718238652656,-155.40824956,0.00029998,2]
[329315645,1718238652666,-250.12031156,0.00029998,2]
[329315646,1718238652678,-201.48986089,0.00029998,2]
[329315647,1718238652691,-6764.48938533,0.00029998,2]
[329315648,1718238652703,-155.33073223,0.00029998,2]
[329315649,1718238652714,-1388.61702236,0.00029998,2]
[329315650,1718238652724,-181.12479512,0.00029998,2]
[329315651,1718238652736,-799.05585964,0.00029998,2]
[329315652,1718238652750,-522.35985864,0.00029998,5]
[329315653,1718238652773,-500.0,0.00029998,30]
[329315654,1718238652786,-500.0,0.00029998,2]
[329315655,1718238652797,-500.0,0.00029998,2]
[329315656,1718238652807,-1000.0,0.00029998,2]
[329315657,1718238652822,-1000.0,0.00029998,2]
[329315658,1718238652840,-1000.0,0.00029998,2]
[329315659,1718238652854,-1000.0,0.00029998,2]
[329315660,1718238652865,-1000.0,0.00029998,2]
[329315661,1718238652876,-1000.0,0.00029998,2]
[329315662,1718238652887,-1000.0,0.00029998,2]
[329315663,1718238652897,-1000.0,0.00029998,2]
[329315664,1718238652907,-1000.0,0.00029998,2]
[329315665,1718238652918,-1000.0,0.00029998,2]
[329315666,1718238652928,-1000.0,0.00029998,2]
[329315667,1718238652940,-1000.0,0.00029998,2]
[329315668,1718238652951,-1000.0,0.00029998,2]
[329315669,1718238652961,-1000.0,0.00029998,2]
[329315670,1718238652971,-1000.0,0.00029998,2]
[329315671,1718238652982,-1000.0,0.00029998,2]
[329315672,1718238652993,-1000.0,0.00029998,2]
[329315673,1718238653006,-1000.0,0.00029998,2]
[329315674,1718238653025,-1000.0,0.00029998,2]
[329315675,1718238653036,-1000.0,0.00029998,2]
[329315676,1718238653047,-1000.0,0.00029998,2]
[329315677,1718238653057,-1000.0,0.00029998,2]
[329315678,1718238653069,-1000.0,0.00029998,2]
[329315679,1718238653079,-1000.0,0.00029998,2]
[329315680,1718238653088,-1000.0,0.00029998,2]
[329315681,1718238653099,-1000.0,0.00029998,2]
[329315682,1718238653109,-1000.0,0.00029998,2]
[329315683,1718238653119,-1000.0,0.00029998,2]
[329315684,1718238653130,-1000.0,0.00029998,2]
[329315685,1718238653140,-1000.0,0.00029998,2]
[329315686,1718238653151,-1000.0,0.00029998,2]
[329315687,1718238653161,-1000.0,0.00029998,2]
[329315688,1718238653172,-1057.0,0.00029998,2]
[329315689,1718238653182,-2013.69130441,0.00029999,2]
[329315690,1718238653193,-780.12153719,0.00029999,2]
[329315691,1718238653203,-209.0392814,0.00029999,2]
[329315692,1718238653214,-5897.91859621,0.00029999,2]
[329315693,1718238653224,-500.0,0.00029999,30]
[329315694,1718238653235,-150.0,0.00029999,2]
[329315695,1718238653246,-367.5,0.00029999,30]
[329315696,1718238653256,-7611.876521,0.00029999,2]
[329315697,1718238653267,-1628.707273,0.00029999,2]
[329315698,1718238653279,-500.0,0.00029999,30]
[329315699,1718238653290,-500.0,0.00029999,30]
[329315700,1718238653302,-500.0,0.00029999,30]
[329315701,1718238653317,-500.0,0.00029999,30]
[329315702,1718238653328,-468.26487461,0.00029999,30]
[329315703,1718238653338,-150.0,0.00029999,2]
[329315704,1718238653348,-2672.01901803,0.0003,5]
[329315705,1718238653358,-858556.09966982,0.0003,13]
[329315706,1718238653367,-7393126.54992429,0.0003,2]
[329315707,1718238653563,-129391.49064515,0.0003,2]
[329315708,1718238654356,-4056.82989435,0.00026003,2]
[329315709,1718238654367,-5430.39962822,0.00029989,10]
[329315710,1718238654379,-819905.02329076,0.0003,2]
[329315732,1718239832851,-642.3977412,0.000149,2]
[329315733,1718239832864,-456.76620795,0.000149,2]
[329315734,1718239832876,-896.97204325,0.000149,2]
[329315735,1718239832886,-59.72171494,0.000149,2]
[329315736,1718239832901,-276.23202097,0.000149,2]
[329315737,1718239832913,-289.55020456,0.0001499,2]
[329315738,1718239833010,-2210.17386726,0.0001499,2]
[329315739,1718239833020,-191.56818928,0.0001499,2]
[329315740,1718239833030,-150.42,0.0001499,2]
[329315741,1718239833040,-150.42,0.0001499,2]
[329315742,1718239833051,-150.42,0.0001499,2]
[329315743,1718239833061,-150.42,0.0001499,2]
[329315744,1718239833072,-6541.58283442,0.00015,2]
[329315745,1718239833160,-309840.74098918,0.00015,2]
[329315746,1718239833172,-935.25814264,0.00015,2]
[329315747,1718239833184,-5692.61884254,0.00015,2]
[329315748,1718239833197,-6577.77813554,0.00015,2]
[329315749,1718239833209,-397.56791311,0.00015,2]
[329315750,1718239833334,-300.6296171,0.00015,2]
[329315751,1718239833348,-997.8724334,0.00015,2]
[329315752,1718239833482,-1629.4257306,0.00015,2]
[329315777,1718239838492,-660.37265019,0.00015,2]
[329315778,1718239838674,-50911.62769491,0.00015,2]
[329315779,1718239838698,-8842.50634071,0.00015,2]
[329315909,1718239841492,-2667.88737523,0.00015,2]
[329315970,1718239842309,-78872.63247095,0.00015,2]
[329316424,1718239848838,-255.14873995,0.000149,2]
[329316425,1718239848857,-555584.75985335,0.00015,2]
[329316460,1718239849545,-215779.28857608,0.00015,2]
[329316810,1718241034066,-312.0163237,0.00014782,2]
[329316811,1718241034077,-365.5464961,0.00014783,2]
[329316812,1718241034100,-536.37434974,0.00014789,2]
[329316813,1718241034112,-156.90145977,0.00014797,2]
[329316814,1718241034123,-156.90145977,0.00014849,2]
[329316815,1718241034136,-162.79065026,0.000149,2]
[329316816,1718241034148,-8134.5361,0.000149,2]
[329316817,1718241034163,-156.90145977,0.000149,2]
[329316818,1718241034178,-157.98881195,0.000149,2]
[329316819,1718241034190,-335.95373591,0.000149,2]
[329316820,1718241034202,-191.56818929,0.0001499,2]
[329316821,1718241034214,-1000.0,0.00014999,2]
[329316822,1718241034228,-1000.0,0.00014999,2]
[329316823,1718241034240,-312.43037364,0.00014999,2]
[329316824,1718241034251,-1031.71806703,0.00014999,2]
[329316825,1718241034262,-19892.69039221,0.00015,2]
[329316849,1718241040787,-5378.70365807,0.00015,2]
[329317029,1718241043986,-13920.0,0.00015,2]
[329317057,1718241044504,-77178.10426639,0.00015,2]
[329317059,1718241044518,-68395.88621798,0.00015,2]
[329317060,1718241044532,-65508.97347628,0.00015,2]
[329317062,1718241044545,-19784.12334789,0.00015,2]
[329317064,1718241044560,-424946.61455427,0.00015,2]
[329317066,1718241044575,-155.0,0.00015,2]
[329317068,1718241044588,-1051.65242,0.00015,2]
[329317069,1718241044612,-499.99,0.00016264,2]
[329317071,1718241044629,-179.48,0.00016712,2]
[329317073,1718241044681,-500.0,0.00017295,2]
[329317074,1718241044695,-284.86,0.00017311,2]
[329317076,1718241044710,-164.64,0.0001745,2]
[329317078,1718241044724,-157.98881192,0.0001865,2]
[329317080,1718241044750,-255.14873995,0.00019078,2]
[329317082,1718241044775,-680.0,0.0001917,2]
[329317084,1718241044796,-500.0,0.00019178,2]
[329317086,1718241044812,-500.0,0.00019178,2]
[329317088,1718241044831,-500.0,0.00019178,2]
[329317090,1718241044850,-306.97175227,0.00019178,2]
[329317092,1718241044865,-500.0,0.00019178,2]
[329317095,1718241044884,-500.0,0.00019178,2]
[329317097,1718241044938,-500.0,0.00019178,2]
[329317099,1718241044967,-635.00733384,0.00019178,2]
[329317100,1718241045000,-500.0,0.00019178,2]
[329317102,1718241045013,-500.0,0.00019178,2]
[329317104,1718241045027,-500.0,0.00019178,2]
[329317106,1718241045040,-500.0,0.00019178,2]
[329317108,1718241045054,-500.0,0.00019178,2]
[329317109,1718241045073,-500.0,0.00019178,2]
[329317111,1718241045100,-417.02456567,0.00019178,2]
[329317113,1718241045112,-500.0,0.00019178,2]
[329317115,1718241045125,-500.0,0.00019178,2]